[Event "Icelandic Team-ch Kvika Leagu 2023-24"]
[Site "Reykjavik"]
[Date "2024.02.29"]
[Round "1.15"]
[White "Kristinsson, Baldur"]
[Black "O`Donnell, Conor"]
[Result "1/2-1/2"]
[ECO "E11"]
[WhiteElo "2169"]
[BlackElo "2274"]
[Annotator "ChessBase"]
[PlyCount "51"]
[EventDate "2024.02.29"]
[EventType "team-tourn"]
[EventCountry "ISL"]
[SourceTitle "playchess.com"]
[Source "ChessBase"]
[SourceQuality "1"]
[TimeControl "40/5400+30:900+30"]

1. d4 {[%emt 0:00:05]} d5 {[%emt 0:01:08]} 2. Nf3 {[%emt 0:01:15]} Nf6 {[%emt 0:02:04]} 3. c4 {[%emt 0:00:44]} e6 {[%emt 0:00:46]} 4. g3 {[%emt 0:01:11]} Bb4+ {[%emt 0:01:39]} 5. Bd2 {[%emt 0:01:25]} a5 {[%emt 0:01:35]} 6. Bg2 {[%emt 0:08:55]} O-O {[%emt 0:01:07]} 7. O-O {[%emt 0:00:32]} dxc4 {[%emt 0:02:01]} 8. Qc2 {[%emt 0:09:53]} b6 {[%emt 0:04:12]} 9. Bxb4 {[%emt 0:02:01]} axb4 {[%emt 0:00:17]} 10. Qxc4 {[%emt 0:00:15]} Ba6 {[%emt 0:07:43]} 11. Qc2 {[%emt 0:01:11]} Ra7 {[%emt 0:11:34]} 12. Re1 {[%emt 0:05:43]} Qe7 {[%emt 0:03:47]} 13. Nbd2 {[%emt 0:09:32]} Rc8 {[%emt 0:09:41]} 14. Nc4 {[%emt 0:11:09]} Bb7 {[%emt 0:05:52]} 15. Nfe5 {[%emt 0:05:57]} Bxg2 {[%emt 0:01:27]} 16. Kxg2 {[%emt 0:00:10]} c5 {[%emt 0:06:59]} 17. Nd2 {[%emt 0:11:35]} Rac7 {[%emt 0:06:00]} 18. Qd3 {[%emt 0:01:41]} cxd4 {[%emt 0:06:19]} 19. Qxd4 {[%emt 0:01:40]} Nc6 {[%emt 0:10:46]} 20. Nxc6 {[%emt 0:02:30]} Rxc6 {[%emt 0:00:02]} 21. Nb3 {[%emt 0:02:48]} Rd8 {[%emt 0:02:44]} 22. Qe5 {[%emt 0:03:28]} Rd5 {[%emt 0:01:24]} 23. Qb8+ {[%emt 0:00:14]} Rd8 {[%emt 0:00:03]} 24. Qe5 {[%emt 0:00:09]} Rd5 {[%emt 0:04:24]} 25. Qb8+ {[%emt 0:00:13]} Rd8 {[%emt 0:00:55]} 26. Qe5 {[%emt 0:00:47]} 1/2-1/2

[Event "Icelandic Team-ch Kvika Leagu 2023-24"]
[Site "Reykjavik"]
[Date "2024.03.01"]
[Round "1.16"]
[White "Thorarinsson, Pall A."]
[Black "Johannsdottir, Johanna Bjorg"]
[Result "1-0"]
[ECO "E12"]
[WhiteElo "2183"]
[BlackElo "1990"]
[Annotator "RC"]
[PlyCount "89"]
[EventDate "2024.02.29"]
[EventType "team-tourn"]
[EventCountry "ISL"]
[SourceTitle "playchess.com"]
[Source "ChessBase"]
[SourceQuality "1"]
[TimeControl "40/5400+30:900+30"]

1. Nf3 {[%emt 0:00:11]} Nf6 {[%emt 0:00:20]} 2. c4 {[%emt 0:00:27]} e6 {[%emt 0:00:05]} 3. d4 {[%emt 0:00:35]} b6 {[%emt 0:00:16]} 4. a3 {[%emt 0:00:28]} Bb7 {[%emt 0:01:35]} 5. Nc3 {[%emt 0:00:08]} Be7 {[%emt 0:01:58]} 6. d5 {[%emt 0:03:10]} exd5 {[%emt 0:03:22]} 7. cxd5 {[%emt 0:00:32]} O-O {[%emt 0:00:43]} 8. e4 {[%emt 0:04:51]} Re8 {[%emt 0:01:56]} 9. Bd3 {[%emt 0:03:19]} c6 {[%emt 0:04:21]} 10. O-O {[%emt 0:14:15]} cxd5 {[%emt 0:02:27]} 11. exd5 {[%emt 0:00:09]} Na6 {[%emt 0:03:10]} 12. d6 {[%emt 0:18:37]} Bf8 {[%emt 0:04:21]} 13. Bg5 {[%emt 0:12:56]} Nc5 {[%emt 0:04:08]} 14. Bc4 {[%emt 0:21:30]} h6 {[%emt 0:08:11]} 15. Bh4 {[%emt 0:01:35]} g5 {[%emt 0:08:16]} 16. Bg3 {[%emt 0:01:32]} a6 {[%emt 0:03:26]} 17. Ne5 {[%emt 0:01:35]} Ne6 {[%emt 0:01:02]} 18. h4 {[%emt 0:03:05]} b5 {[%emt 0:01:45]} 19. Ba2 {[%emt 0:02:49]} Qb6 {[%emt 0:01:26]} 20. hxg5 {[%emt 0:02:37]} hxg5 {[%emt 0:03:56]} 21. Ng4 {[%emt 0:02:51]} Nxg4 {[%emt 0:06:16]} 22. Qxg4 {[%emt 0:00:02]} Bxd6 {[%emt 0:02:17]} 23. Rad1 {[%emt 0:00:40]} Bxg3 {[%emt 0:02:26]} 24. Qxg3 {[%emt 0:00:04]} Qc5 {[%emt 0:01:14]} 25. Rxd7 {[%emt 0:02:53]} Bc6 {[%emt 0:01:49]} 26. b4 {[%emt 0:00:48]} Qf5 {[%emt 0:02:25]} 27. Rd6 {[%emt 0:00:13]} Rac8 {[%emt 0:00:52]} 28. Bd5 {[%emt 0:01:49]} Bxd5 {[%emt 0:03:44]} 29. Nxd5 {[%emt 0:00:01]} Rcd8 {[%emt 0:04:55]} 30. Ne3 {[%emt 0:00:13]} Qg6 {[%emt 0:03:45]} 31. Rxa6 {[%emt 0:00:27]} Rd4 {[%emt 0:01:07]} 32. Qe5 {[%emt 0:01:11]} Rh4 {[%emt 0:01:44]} 33. g3 {[%emt 0:00:27]} Re4 {[%emt 0:05:22]} 34. Qf5 {[%emt 0:00:23]} Qxf5 {[%emt 0:01:52]} 35. Nxf5 {[%emt 0:00:01]} Rd8 {[%emt 0:01:48]} 36. Nd6 {[%emt 0:01:10]} Re5 {[%emt 0:01:43]} 37. Rc1 {[%emt 0:00:44]} Nd4 {[%emt 0:00:28]} 38. Rc5 {[%emt 0:00:30]} Re1+ {[%emt 0:04:53]} 39. Kg2 {[%emt 0:00:06]} f6 {[%emt 0:00:33]} 40. Nf5 {[%emt 0:00:00]} Ne6 {[%emt 0:00:00]} 41. Rcc6 {[%emt 0:03:04]} Kf7 {[%emt 0:04:45]} 42. Nh6+ {[%emt 0:04:22]} Ke7 {[%emt 0:00:33]} 43. Ra7+ {[%emt 0:01:32]} Rd7 {[%emt 0:00:51]} 44. Ng8+ {[%emt 0:00:49]} Kd8 {[%emt 0:00:16]} 45. Ra8# {[%emt 0:00:26]} 1-0

[Event "Icelandic Team-ch Kvika Leagu 2023-24"]
[Site "Reykjavik"]
[Date "2024.03.01"]
[Round "1.17"]
[White "Kjartansson, Gudmundur"]
[Black "Olsen, Filip Boe"]
[Result "0-1"]
[ECO "B11"]
[WhiteElo "2452"]
[BlackElo "2441"]
[Annotator "ChessBase"]
[PlyCount "272"]
[EventDate "2024.02.29"]
[EventType "team-tourn"]
[EventCountry "ISL"]
[SourceTitle "playchess.com"]
[Source "ChessBase"]
[SourceQuality "1"]
[TimeControl "40/5400+30:900+30"]

1. e4 {[%emt 0:00:05]} c6 {[%emt 0:00:10]} 2. Nc3 {[%emt 0:00:15]} d5 {[%emt 0:00:14]} 3. Nf3 {[%emt 0:00:08]} dxe4 {[%emt 0:00:33]} 4. Nxe4 {[%emt 0:00:04]} Nf6 {[%emt 0:00:13]} 5. Qe2 {[%emt 0:00:29]} Nxe4 {[%emt 0:00:57]} 6. Qxe4 {[%emt 0:00:06]} Nd7 {[%emt 0:00:12]} 7. d4 {[%emt 0:04:10]} Nf6 {[%emt 0:00:29]} 8. Qf4 {[%emt 0:00:13]} Nd5 {[%emt 0:03:29]} 9. Qd2 {[%emt 0:04:33]} Bf5 {[%emt 0:01:00]} 10. Bd3 {[%emt 0:05:14]} Bxd3 {[%emt 0:08:53]} 11. Qxd3 {[%emt 0:00:06]} e6 {[%emt 0:00:33]} 12. O-O {[%emt 0:00:22]} Be7 {[%emt 0:01:07]} 13. a3 {[%emt 0:10:17]} O-O {[%emt 0:01:39]} 14. c4 {[%emt 0:00:39]} Nf6 {[%emt 0:01:00]} 15. b4 {[%emt 0:00:51]} a5 {[%emt 0:08:02]} 16. Bd2 {[%emt 0:09:22]} axb4 {[%emt 0:09:10]} 17. axb4 {[%emt 0:00:05]} Qc7 {[%emt 0:14:23]} 18. h3 {[%emt 0:10:49]} Rfd8 {[%emt 0:02:51]} 19. Qc2 {[%emt 0:02:55]} Nd7 {[%emt 0:06:15]} 20. Qc3 {[%emt 0:13:19]} Bf6 {[%emt 0:02:20]} 21. Rfe1 {[%emt 0:05:21]} h6 {[%emt 0:05:23]} 22. g3 {[%emt 0:01:45]} b6 {[%emt 0:02:11]} 23. Bf4 {[%emt 0:12:51]} Qb7 {[%emt 0:00:17]} 24. Qb3 {[%emt 0:03:06]} Ra6 {[%emt 0:12:00]} 25. Rxa6 {[%emt 0:08:20]} Qxa6 {[%emt 0:00:02]} 26. b5 {[%emt 0:03:43]} Qb7 {[%emt 0:02:57]} 27. bxc6 {[%emt 0:00:49]} Qxc6 {[%emt 0:00:08]} 28. d5 {[%emt 0:00:36]} exd5 {[%emt 0:01:36]} 29. cxd5 {[%emt 0:00:02]} Qc3 {[%emt 0:04:15]} 30. Qxc3 {[%emt 0:01:31]} Bxc3 {[%emt 0:00:02]} 31. Rc1 {[%emt 0:01:00]} Bb4 {[%emt 0:00:21]} 32. Nd4 {[%emt 0:01:42]} Ba3 {[%emt 0:02:35]} 33. Rc6 {[%emt 0:01:10]} Nf6 {[%emt 0:02:40]} 34. d6 {[%emt 0:00:43]} Nd5 {[%emt 0:02:18]} 35. Be5 {[%emt 0:00:38]} Bc5 {[%emt 0:02:47]} 36. Nb3 {[%emt 0:00:34]} Nb4 {[%emt 0:00:51]} 37. Rc7 {[%emt 0:00:34]} Bxd6 {[%emt 0:00:53]} 38. Bxd6 {[%emt 0:00:08]} Rxd6 {[%emt 0:00:01]} 39. Rc8+ {[%emt 0:00:45]} Kh7 {[%emt 0:00:02]} 40. Rc4 {[%emt 0:00:00]} Nd3 {[%emt 0:00:00]} 41. Kg2 {[%emt 0:08:02]} Rf6 {[%emt 0:03:19]} 42. f4 {[%emt 0:00:10]} Rf5 {[%emt 0:02:06]} 43. Rd4 {[%emt 0:01:25]} Ne1+ {[%emt 0:02:45]} 44. Kf2 {[%emt 0:00:11]} Nc2 {[%emt 0:00:44]} 45. Rd7 {[%emt 0:03:50]} g5 {[%emt 0:02:30]} 46. Rc7 {[%emt 0:01:35]} Nb4 {[%emt 0:02:17]} 47. Nd4 {[%emt 0:00:07]} Rd5 {[%emt 0:00:52]} 48. Nf3 {[%emt 0:03:19]} Kg7 {[%emt 0:01:18]} 49. Rb7 {[%emt 0:00:25]} gxf4 {[%emt 0:02:11]} 50. Rxb6 {[%emt 0:00:42]} Nd3+ {[%emt 0:00:23]} 51. Kg2 {[%emt 0:00:06]} Rc5 {[%emt 0:02:18]} 52. gxf4 {[%emt 0:00:08]} Nxf4+ {[%emt 0:00:06]} 53. Kg3 {[%emt 0:00:06]} Nh5+ {[%emt 0:00:19]} 54. Kg4 {[%emt 0:01:13]} Nf6+ {[%emt 0:00:02]} 55. Kg3 {[%emt 0:00:07]} Rc3 {[%emt 0:00:20]} 56. Ra6 {[%emt 0:00:26]} Rb3 {[%emt 0:01:27]} 57. Ra5 {[%emt 0:01:38]} Ne4+ {[%emt 0:00:55]} 58. Kf4 {[%emt 0:00:25]} Nc3 {[%emt 0:00:34]} 59. Nd4 {[%emt 0:01:10]} Rb4 {[%emt 0:00:16]} 60. Ke3 {[%emt 0:00:28]} Nd1+ {[%emt 0:00:35]} 61. Kd3 {[%emt 0:00:10]} Nb2+ {[%emt 0:00:20]} 62. Ke4 {[%emt 0:00:35]} Nd1 {[%emt 0:01:48]} 63. Ra3 {[%emt 0:00:35]} Rc4 {[%emt 0:01:01]} 64. Rg3+ {[%emt 0:00:15]} Kf8 {[%emt 0:00:35]} 65. Ke5 {[%emt 0:00:59]} Nc3 {[%emt 0:00:57]} 66. Rd3 {[%emt 0:00:29]} Rc5+ {[%emt 0:00:27]} 67. Kf4 {[%emt 0:00:18]} Nd5+ {[%emt 0:00:15]} 68. Kg3 {[%emt 0:00:14]} Ne7 {[%emt 0:00:49]} 69. Nf3 {[%emt 0:00:56]} Kg7 {[%emt 0:00:21]} 70. Ra3 {[%emt 0:00:16]} Rc4 {[%emt 0:00:13]} 71. Ra5 {[%emt 0:00:11]} Ng6 {[%emt 0:00:36]} 72. Ra3 {[%emt 0:00:57]} Ne7 {[%emt 0:00:17]} 73. Ra5 {[%emt 0:00:05]} Rc3 {[%emt 0:00:09]} 74. Kf4 {[%emt 0:00:33]} Rb3 {[%emt 0:00:34]} 75. Rc5 {[%emt 0:00:19]} Ra3 {[%emt 0:00:16]} 76. Rb5 {[%emt 0:00:39]} Ng6+ {[%emt 0:00:33]} 77. Kg3 {[%emt 0:00:11]} Nf8 {[%emt 0:00:10]} 78. Rb4 {[%emt 0:01:16]} Ne6 {[%emt 0:00:15]} 79. Kg2 {[%emt 0:00:35]} Kf6 {[%emt 0:00:11]} 80. h4 {[%emt 0:00:25]} Rc3 {[%emt 0:00:49]} 81. Kg3 {[%emt 0:00:15]} Kg6 {[%emt 0:00:52]} 82. Rb6 {[%emt 0:00:43]} Kh7 {[%emt 0:00:26]} 83. Rd6 {[%emt 0:00:36]} Ng7 {[%emt 0:00:13]} 84. Rd5 {[%emt 0:00:29]} Ra3 {[%emt 0:00:29]} 85. Rb5 {[%emt 0:00:14]} Kg6 {[%emt 0:00:51]} 86. Rb6+ {[%emt 0:00:19]} f6 {[%emt 0:00:08]} 87. Rb4 {[%emt 0:00:52]} Rc3 {[%emt 0:00:51]} 88. Ra4 {[%emt 0:00:16]} Rb3 {[%emt 0:00:02]} 89. Rg4+ {[%emt 0:00:24]} Kf7 {[%emt 0:00:11]} 90. Ra4 {[%emt 0:00:06]} h5 {[%emt 0:01:11]} 91. Ra8 {[%emt 0:01:17]} Kg6 {[%emt 0:00:45]} 92. Rg8 {[%emt 0:00:17]} Ra3 {[%emt 0:00:05]} 93. Kf2 {[%emt 0:00:33]} Ra4 {[%emt 0:00:25]} 94. Kg3 {[%emt 0:00:38]} Kh7 {[%emt 0:00:24]} 95. Rb8 {[%emt 0:00:29]} Nf5+ {[%emt 0:00:23]} 96. Kh3 {[%emt 0:00:31]} Ra3 {[%emt 0:00:24]} 97. Kg2 {[%emt 0:00:12]} Kg6 {[%emt 0:00:21]} 98. Rg8+ {[%emt 0:00:15]} Kf7 {[%emt 0:00:27]} 99. Rb8 {[%emt 0:00:05]} Rd3 {[%emt 0:00:37]} 100. Rb7+ {[%emt 0:01:19]} Kg6 {[%emt 0:00:15]} 101. Rb6 {[%emt 0:00:18]} Re3 {[%emt 0:00:12]} 102. Kf2 {[%emt 0:00:10]} Re4 {[%emt 0:00:11]} 103. Ra6 {[%emt 0:01:09]} Nxh4 {[%emt 0:00:56]} 104. Nxh4+ {[%emt 0:00:03]} Rxh4 {[%emt 0:00:09]} 105. Ra5 {[%emt 0:00:41]} Rb4 {[%emt 0:00:02]} 106. Kg3 {[%emt 0:00:09]} Rg4+ {[%emt 0:00:18]} 107. Kf3 {[%emt 0:00:05]} Rg5 {[%emt 0:00:07]} 108. Ra8 {[%emt 0:00:04]} Rb5 {[%emt 0:00:41]} 109. Kg3 {[%emt 0:00:12]} Rg5+ {[%emt 0:02:23]} 110. Kh4 {[%emt 0:00:17]} Rg4+ {[%emt 0:00:14]} 111. Kh3 {[%emt 0:00:03]} Kg5 {[%emt 0:00:26]} 112. Ra5+ {[%emt 0:01:25]} f5 {[%emt 0:00:19]} 113. Ra8 {[%emt 0:00:20]} Rd4 {[%emt 0:00:26]} 114. Ra3 {[%emt 0:00:57]} Rh4+ {[%emt 0:00:56]} 115. Kg2 {[%emt 0:00:49]} Re4 {[%emt 0:00:12]} 116. Kh3 {[%emt 0:00:18]} h4 {[%emt 0:00:11]} 117. Rb3 {[%emt 0:00:55]} Re5 {[%emt 0:00:21]} 118. Ra3 {[%emt 0:01:19]} Re2 {[%emt 0:00:02]} 119. Rb3 {[%emt 0:00:08]} Kf4 {[%emt 0:00:09]} 120. Rb4+ {[%emt 0:00:20]} Re4 {[%emt 0:00:07]} 121. Rb5 {[%emt 0:00:21]} Kg5 {[%emt 0:00:55]} 122. Rb3 {[%emt 0:00:03]} Re5 {[%emt 0:00:03]} 123. Ra3 {[%emt 0:01:33]} f4 {[%emt 0:00:07]} 124. Ra8 {[%emt 0:00:28]} Re3+ {[%emt 0:00:02]} 125. Kg2 {[%emt 0:00:08]} h3+ {[%emt 0:01:28]} 126. Kh2 {[%emt 0:00:03]} Kg4 {[%emt 0:00:42]} 127. Rg8+ {[%emt 0:01:22]} Kf3 {[%emt 0:00:01]} 128. Kxh3 {[%emt 0:00:05]} Ke2+ {[%emt 0:00:20]} 129. Kh2 {[%emt 0:00:05]} f3 {[%emt 0:00:12]} 130. Rf8 {[%emt 0:00:44]} Kf1 {[%emt 0:04:10]} 131. Ra8 {[%emt 0:00:32]} Re1 {[%emt 0:01:45]} 132. Ra2 {[%emt 0:01:11]} Re2+ {[%emt 0:00:05]} 133. Kh1 {[%emt 0:00:03]} f2 {[%emt 0:01:28]} 134. Ra1+ {[%emt 0:00:27]} Re1 {[%emt 0:00:01]} 135. Ra2 {[%emt 0:00:13]} Rd1 {[%emt 0:00:39]} 136. Kh2 {[%emt 0:00:33]} Ke1 {[%emt 0:00:12]} 0-1

[Event "Icelandic Team-ch Kvika Leagu 2023-24"]
[Site "Reykjavik"]
[Date "2024.02.29"]
[Round "1.18"]
[White "Heimisson, Hilmir Freyr"]
[Black "Gretarsson, Helgi Ass"]
[Result "1-0"]
[ECO "D17"]
[WhiteElo "2376"]
[BlackElo "2477"]
[Annotator "RC"]
[PlyCount "74"]
[EventDate "2024.02.29"]
[EventType "team-tourn"]
[EventCountry "ISL"]
[SourceTitle "playchess.com"]
[Source "ChessBase"]
[SourceQuality "1"]
[TimeControl "40/5400+30:900+30"]

1. d4 {[%emt 0:05:23]} d5 {[%emt 0:00:08]} 2. c4 {[%emt 0:02:11]} c6 {[%emt 0:00:10]} 3. Nc3 {[%emt 0:00:36]} Nf6 {[%emt 0:01:57]} 4. Nf3 {[%emt 0:00:12]} dxc4 {[%emt 0:00:32]} 5. a4 {[%emt 0:00:19]} Bf5 {[%emt 0:00:10]} 6. Ne5 {[%emt 0:00:20]} Nbd7 {[%emt 0:00:07]} 7. Nxc4 {[%emt 0:00:10]} Nb6 {[%emt 0:00:02]} 8. Ne5 {[%emt 0:00:24]} a5 {[%emt 0:00:05]} 9. f3 {[%emt 0:01:35]} Nfd7 {[%emt 0:00:40]} 10. Nxd7 {[%emt 0:01:32]} Bxd7 {[%emt 0:00:25]} 11. e4 {[%emt 0:02:31]} e6 {[%emt 0:00:09]} 12. Be3 {[%emt 0:04:08]} Bb4 {[%emt 0:01:04]} 13. Be2 {[%emt 0:01:16]} Rc8 {[%emt 0:01:38]} 14. O-O {[%emt 0:09:02]} O-O {[%emt 0:00:10]} 15. Na2 {[%emt 0:11:32]} Be7 {[%emt 0:00:47]} 16. Rc1 {[%emt 0:01:05]} c5 {[%emt 0:02:35]} 17. b3 {[%emt 0:01:48]} c4 {[%emt 0:27:30]} 18. bxc4 {[%emt 0:03:44]} Bxa4 {[%emt 0:04:09]} 19. Qd3 {[%emt 0:09:05]} e5 {[%emt 0:04:17]} 20. d5 {[%emt 0:03:43]} Bc5 {[%emt 0:20:40]} 21. Kh1 {[%emt 0:06:02]} Qd6 {[%emt 0:21:32]} 22. f4 {[%emt 0:08:00]} Bxe3 {[%emt 0:06:17]} 23. Qxe3 {[%emt 0:00:14]} exf4 {[%emt 0:02:48]} 24. Rxf4 {[%emt 0:00:43]} Nd7 {[%emt 0:00:35]} 25. Nc3 {[%emt 0:06:02]} Bb3 {[%emt 0:01:33]} 26. Nb5 {[%emt 0:02:40]} Qb4 {[%emt 0:00:01]} 27. Rb1 {[%emt 0:02:09]} a4 {[%emt 0:00:36]} 28. Bg4 {[%emt 0:04:57]} Ne5 {[%emt 0:02:37]} 29. Bxc8 {[%emt 0:04:58]} Rxc8 {[%emt 0:00:08]} 30. Nd4 {[%emt 0:05:41]} Rxc4 {[%emt 0:00:27]} 31. Nf5 {[%emt 0:00:18]} Qc5 {[%emt 0:01:32]} 32. Qg3 {[%emt 0:00:32]} g6 {[%emt 0:00:28]} 33. Rff1 {[%emt 0:00:11]} Rxe4 {[%emt 0:00:21]} 34. Rbc1 {[%emt 0:00:59]} Bc4 {[%emt 0:00:12]} 35. d6 {[%emt 0:01:07]} Kf8 {[%emt 0:01:04]} 36. Nh6 {[%emt 0:02:38]} Kg7 {[%emt 0:00:08]} 37. Qg5 {[%emt 0:00:19]} Qe3 {[%emt 0:00:49]} 1-0

[Event "Icelandic Team-ch Kvika Leagu 2023-24"]
[Site "Reykjavik"]
[Date "2024.03.01"]
[Round "1.19"]
[White "Domalchuk-Jonasson, Aleksandr"]
[Black "Gislason, Gudmundur"]
[Result "1-0"]
[ECO "E90"]
[WhiteElo "2362"]
[BlackElo "2266"]
[Annotator "ChessBase"]
[PlyCount "119"]
[EventDate "2024.02.29"]
[EventType "team-tourn"]
[EventCountry "ISL"]
[SourceTitle "playchess.com"]
[Source "ChessBase"]
[SourceQuality "1"]
[TimeControl "40/5400+30:900+30"]

1. c4 {[%emt 0:00:07]} g6 {[%emt 0:00:54]} 2. Nc3 {[%emt 0:00:19]} Bg7 {[%emt 0:00:06]} 3. d4 {[%emt 0:00:20]} c5 {[%emt 0:00:07]} 4. d5 {[%emt 0:00:34]} d6 {[%emt 0:00:07]} 5. e4 {[%emt 0:00:22]} Nf6 {[%emt 0:03:23]} 6. h3 {[%emt 0:01:04]} O-O {[%emt 0:00:20]} 7. Nf3 {[%emt 0:00:12]} Na6 {[%emt 0:02:21]} 8. Bd3 {[%emt 0:03:51]} Nc7 {[%emt 0:05:05]} 9. O-O {[%emt 0:01:13]} Rb8 {[%emt 0:01:43]} 10. Bf4 {[%emt 0:00:53]} a6 {[%emt 0:00:59]} 11. a4 {[%emt 0:00:56]} e5 {[%emt 0:03:42]} 12. dxe6 {[%emt 0:00:46]} Nxe6 {[%emt 0:00:11]} 13. Bh2 {[%emt 0:01:00]} Nh5 {[%emt 0:00:34]} 14. Qd2 {[%emt 0:13:01]} b6 {[%emt 0:14:54]} 15. Rad1 {[%emt 0:06:44]} Rb7 {[%emt 0:06:12]} 16. Bc2 {[%emt 0:03:16]} Rd7 {[%emt 0:03:08]} 17. Rfe1 {[%emt 0:16:32]} Bb7 {[%emt 0:05:37]} 18. Qc1 {[%emt 0:16:37]} Bc6 {[%emt 0:07:48]} 19. Rd3 {[%emt 0:02:45]} Qc7 {[%emt 0:08:35]} 20. Red1 {[%emt 0:02:05]} Nd4 {[%emt 0:01:20]} 21. g4 {[%emt 0:09:47]} Bxe4 {[%emt 0:02:30]} 22. Nxd4 {[%emt 0:00:53]} Bxd3 {[%emt 0:01:20]} 23. Nd5 {[%emt 0:02:47]} Bxc2 {[%emt 0:08:51]} 24. Nxc2 {[%emt 0:02:44]} Qd8 {[%emt 0:05:43]} 25. gxh5 {[%emt 0:00:04]} Qh4 {[%emt 0:04:34]} 26. Nf4 {[%emt 0:11:22]} Qg5+ {[%emt 0:04:16]} 27. Bg3 {[%emt 0:00:16]} Re8 {[%emt 0:01:08]} 28. h4 {[%emt 0:02:01]} Qg4 {[%emt 0:00:08]} 29. Kg2 {[%emt 0:01:15]} Qf5 {[%emt 0:01:50]} 30. Ne3 {[%emt 0:01:01]} Qe4+ {[%emt 0:00:33]} 31. Kh2 {[%emt 0:00:18]} b5 {[%emt 0:01:52]} 32. Re1 {[%emt 0:00:48]} bxa4 {[%emt 0:00:56]} 33. Nfd5 {[%emt 0:00:23]} Re6 {[%emt 0:01:53]} 34. Nf4 {[%emt 0:00:30]} Re8 {[%emt 0:00:16]} 35. Qd1 {[%emt 0:00:36]} Qc6 {[%emt 0:01:31]} 36. Ng4 {[%emt 0:00:35]} Rde7 {[%emt 0:00:31]} 37. Rxe7 {[%emt 0:00:11]} Rxe7 {[%emt 0:00:17]} 38. Nd5 {[%emt 0:00:10]} Re6 {[%emt 0:02:25]} 39. Qf3 {[%emt 0:00:01]} Qc8 {[%emt 0:00:12]} 40. Ngf6+ {[%emt 0:00:00]} Kh8 {[%emt 0:00:00]} 41. Ne4 {[%emt 0:08:58]} f5 {[%emt 0:03:08]} 42. Ng5 {[%emt 0:02:16]} Bxb2 {[%emt 0:00:30]} 43. Nb6 {[%emt 0:00:42]} Qe8 {[%emt 0:01:16]} 44. Nxa4 {[%emt 0:02:15]} Be5 {[%emt 0:01:35]} 45. Nxe6 {[%emt 0:00:34]} Qxe6 {[%emt 0:00:10]} 46. h6 {[%emt 0:01:34]} Bxg3+ {[%emt 0:04:56]} 47. fxg3 {[%emt 0:01:08]} Qxc4 {[%emt 0:00:58]} 48. Qa8+ {[%emt 0:03:07]} Qg8 {[%emt 0:00:05]} 49. Qxa6 {[%emt 0:00:18]} Qf8 {[%emt 0:00:15]} 50. Nc3 {[%emt 0:00:45]} f4 {[%emt 0:00:52]} 51. Ne4 {[%emt 0:00:27]} fxg3+ {[%emt 0:01:49]} 52. Kxg3 {[%emt 0:00:01]} d5 {[%emt 0:02:22]} 53. Qf6+ {[%emt 0:00:52]} Qxf6 {[%emt 0:00:18]} 54. Nxf6 {[%emt 0:00:02]} d4 {[%emt 0:00:10]} 55. Kf3 {[%emt 0:00:19]} c4 {[%emt 0:00:31]} 56. Ke4 {[%emt 0:01:15]} d3 {[%emt 0:00:10]} 57. Ke3 {[%emt 0:00:00]} g5 {[%emt 0:00:29]} 58. hxg5 {[%emt 0:00:19]} c3 {[%emt 0:00:29]} 59. g6 {[%emt 0:01:13]} hxg6 {[%emt 0:00:16]} 60. Kxd3 {[%emt 0:00:01]} 1-0

[Event "Icelandic Team-ch Kvika Leagu 2023-24"]
[Site "Reykjavik"]
[Date "2024.03.01"]
[Round "1.20"]
[White "Olafsson, Thorvardur"]
[Black "Sulypa, Oleksandr"]
[Result "0-1"]
[ECO "B90"]
[WhiteElo "2100"]
[BlackElo "2458"]
[Annotator "ChessBase"]
[PlyCount "104"]
[EventDate "2024.02.29"]
[EventType "team-tourn"]
[EventCountry "ISL"]
[SourceTitle "playchess.com"]
[Source "ChessBase"]
[SourceQuality "1"]
[TimeControl "40/5400+30:900+30"]

1. e4 {[%emt 0:00:49]} c5 {[%emt 0:00:08]} 2. Nf3 {[%emt 0:00:14]} d6 {[%emt 0:00:10]} 3. d4 {[%emt 0:00:17]} Nf6 {[%emt 0:01:39]} 4. Nc3 {[%emt 0:01:37]} cxd4 {[%emt 0:00:09]} 5. Nxd4 {[%emt 0:00:16]} a6 {[%emt 0:00:06]} 6. Be3 {[%emt 0:01:18]} e5 {[%emt 0:00:20]} 7. Nb3 {[%emt 0:00:24]} Be7 {[%emt 0:00:41]} 8. f3 {[%emt 0:01:18]} Be6 {[%emt 0:00:14]} 9. Qd2 {[%emt 0:04:28]} Nbd7 {[%emt 0:01:05]} 10. g4 {[%emt 0:06:50]} b5 {[%emt 0:13:14]} 11. g5 {[%emt 0:10:33]} Nh5 {[%emt 0:00:10]} 12. O-O-O {[%emt 0:11:10]} Qc7 {[%emt 0:10:20]} 13. Kb1 {[%emt 0:04:53]} O-O {[%emt 0:22:40]} 14. Nd5 {[%emt 0:12:39]} Bxd5 {[%emt 0:00:07]} 15. exd5 {[%emt 0:00:55]} Rfe8 {[%emt 0:18:02]} 16. Rg1 {[%emt 0:12:45]} Nb6 {[%emt 0:07:02]} 17. Na5 {[%emt 0:14:25]} Nxd5 {[%emt 0:07:29]} 18. Qxd5 {[%emt 0:00:11]} Qxa5 {[%emt 0:00:02]} 19. c4 {[%emt 0:12:24]} Rab8 {[%emt 0:03:34]} 20. cxb5 {[%emt 0:01:09]} axb5 {[%emt 0:00:06]} 21. Bc4 {[%emt 0:00:34]} Rf8 {[%emt 0:03:44]} 22. Bb3 {[%emt 0:00:36]} g6 {[%emt 0:00:35]} 23. Rg4 {[%emt 0:01:02]} Qd8 {[%emt 0:01:30]} 24. h4 {[%emt 0:01:03]} Kh8 {[%emt 0:02:17]} 25. Rb4 {[%emt 0:00:22]} Qe8 {[%emt 0:00:28]} 26. Rc1 {[%emt 0:00:28]} Qd7 {[%emt 0:01:32]} 27. Qc6 {[%emt 0:00:40]} Qf5+ {[%emt 0:03:21]} 28. Qe4 {[%emt 0:00:06]} Qd7 {[%emt 0:01:07]} 29. f4 {[%emt 0:00:52]} Kg8 {[%emt 0:01:00]} 30. Qd3 {[%emt 0:00:40]} d5 {[%emt 0:00:35]} 31. Re4 {[%emt 0:00:26]} Qf5 {[%emt 0:01:31]} 32. Bxd5 {[%emt 0:00:33]} Ng3 {[%emt 0:00:53]} 33. fxe5 {[%emt 0:00:28]} Nxe4 {[%emt 0:00:15]} 34. Qxe4 {[%emt 0:00:20]} Qxe4+ {[%emt 0:00:20]} 35. Bxe4 {[%emt 0:00:03]} Rbc8 {[%emt 0:00:27]} 36. Rf1 {[%emt 0:00:54]} Bc5 {[%emt 0:00:36]} 37. Bd2 {[%emt 0:00:44]} Rcd8 {[%emt 0:00:35]} 38. Kc2 {[%emt 0:00:23]} Bd4 {[%emt 0:00:26]} 39. Bb4 {[%emt 0:00:39]} Rfe8 {[%emt 0:00:34]} 40. Bd3 {[%emt 0:00:00]} Rxe5 {[%emt 0:00:00]} 41. Rf4 {[%emt 0:02:30]} Rd7 {[%emt 0:11:56]} 42. Ba3 {[%emt 0:10:15]} h6 {[%emt 0:01:48]} 43. gxh6 {[%emt 0:01:08]} Be3 {[%emt 0:00:11]} 44. Rf6 {[%emt 0:00:57]} Bxh6 {[%emt 0:01:07]} 45. Rc6 {[%emt 0:01:28]} Bg7 {[%emt 0:01:32]} 46. Bb4 {[%emt 0:01:40]} Red5 {[%emt 0:00:56]} 47. Be2 {[%emt 0:00:34]} Re5 {[%emt 0:00:37]} 48. Bd3 {[%emt 0:00:31]} Red5 {[%emt 0:00:26]} 49. Be2 {[%emt 0:00:08]} Rf5 {[%emt 0:00:12]} 50. Bc5 {[%emt 0:01:06]} Rdd5 {[%emt 0:01:46]} 51. b4 {[%emt 0:00:16]} Bd4 {[%emt 0:00:06]} 52. Bg4 {[%emt 0:00:56]} Rf4 {[%emt 0:00:31]} 0-1